Cogmind - Beta 15 @@@ ROGUE MODE // 2025.07.30 @ 12:51:46 Player: puppuppit Result: Destroyed by G-34 Mercenary with Small Laser Performance ------------- Evolutions (0) 0 Regions Visited (1) 200 Robots Destroyed (40) 200 Value Destroyed (775) 775 Prototype IDs (0) 0 Alien Tech Used (0) 0 Bonus (0) 0 TOTAL SCORE: 1175 Bonus ------- None Cogmind --------- Core Integrity 0/250 Matter 291/300 Energy 246/250 System Corruption 0% Temperature Cool (8) Movement Treading (160) Location -10/Materials Parts ------- > --- POWER (1) -------- Ion Engine > --- PROPULSION (2) --- Light Treads Light Treads > --- UTILITY (2) ------ Large Storage Unit Medium Armor Plating > --- WEAPON (2) ------- Shotgun Shotgun > --- INVENTORY (15) --- Light Treads Light Treads Light Treads High-capacity Matter Pod (200) Medium Armor Plating Medium Armor Plating Medium Armor Plating Light Assault Rifle Light Assault Rifle Light Assault Rifle Light Assault Rifle Shotgun Shotgun Grenade Launcher Peak State ------------ > --- POWER ------------ Ion Engine > --- PROPULSION ------- Light Treads Light Treads > --- UTILITY ---------- Large Storage Unit Hacking Suite > --- WEAPON ----------- Shotgun Shotgun > --- INVENTORY -------- Light Ion Engine Light Treads Light Treads Light Treads Terrain Scanner Medium Armor Plating Medium Armor Plating Medium Armor Plating Medium Armor Plating Light Assault Rifle Light Assault Rifle Light Assault Rifle Shotgun Shotgun Grenade Launcher [Rating: 13] Favorites ----------- Power Ion Engine Engine Ion Engine Power Core Light Nuclear Core Propulsion Light Treads Treads Light Treads Utility Small Storage Unit Device Improved Terrain Scanner Storage Small Storage Unit Hackware Hacking Suite Protection Medium Armor Plating Weapon Shotgun Energy Gun Medium Laser Ballistic Gun Shotgun Launcher Grenade Launcher Build | -11 -10 ------- Run | Yrd Mat Slots Evolved . | . . Power . | . . Propulsion . | . . Utility . | . . Weapon . | . . Parts Attached 23 | 6 17 Power 4 | 1 3 Engine 3 | 1 2 Core 1 | . 1 Reactor . | . . Propulsion 5 | 2 3 Treads 5 | 2 3 Leg . | . . Wheel . | . . Hover . | . . Flight . | . . Utility 6 | 1 5 Device 2 | . 2 Storage 2 | 1 1 Processor . | . . Hackware 1 | . 1 Protection 1 | . 1 Artifact . | . . Weapon 8 | 2 6 Energy Gun 3 | 2 1 Energy Cannon . | . . Ballistic Gun 4 | . 4 Ballistic Cannon . | . . Launcher 1 | . 1 Special Weapon . | . . Impact Weapon . | . . Slashing Weapon . | . . Piercing Weapon . | . . Special Melee Weapon . | . . Unidentified Prototypes . | . . Parts Lost 6 | . 6 Power 2 | . 2 Propulsion 3 | . 3 Utility . | . . Weapon 1 | . 1 Highest Loss Streak 2 | . 2 To Critical Strikes . | . . Average Backups 8 | . 9 Power . | . . Propulsion 2 | . 2 Utility 2 | . 2 Weapon 4 | . 4 Tool/Special . | . . Unused Backups 13 | . 13 Power . | . . Propulsion 3 | . 3 Utility 4 | . 4 Weapon 6 | . 6 Tool/Special . | . . Average Slot Usage (%) 93 | . 93 Engine 6 | . 6 Core 5 | . 5 Treads 25 | . 25 Device 5 | . 5 Storage 14 | . 14 Hackware 6 | . 6 Energy Gun 12 | . 12 Ballistic Gun 14 | . 14 Peak Build Rating 13 | 6 13 Average Rating 10 | 4 10 On Entrance 3 | . 6 Naked Turns . | . . Heaviest Build 38 | 12 38 Greatest Support 40 | 40 40 Greatest Overweight (x) . | . . Average Overweight (x) . | . . Largest Inventory Capacity 15 | 8 15 Average Capacity 11 | 7 11 Most Carried 15 | . 15 Average Carried 9 | . 9 Final Capacity 15 | 8 15 Final Carried 14 | . 14 Class Distribution -------------------- 97% | Mutant Dominant Class ---------------- Mutant | -10/Materials Resources | -11 -10 ----------- Run | Yrd Mat Matter Collected 959 | 260 699 Remotely . | . . Salvage Created 1226 | 100 1126 Parts 80 | 2 78 Haulers Intercepted 2 | . 2 Recyclers Shooed . | . . Parts Field Recycled . | . . Retrieved Matter . | . . Parts Self-Destructed . | . . Prevented . | . . Kills | -11 -10 ------- Run | Yrd Mat Combat Hostiles Destroyed 24 | . 24 Guns 20 | . 20 AOE 3 | . 3 Classes Destroyed 9 | 1 8 Worker 4 | . 4 Builder 3 | . 3 Tunneler 1 | . 1 Hauler 2 | . 2 Recycler 2 | 1 1 Operator 1 | . 1 Watcher 3 | . 3 Swarmer 9 | . 9 Grunt 15 | . 15 Best Kill Streak 6 | 1 6 Combat Bots Only 6 | . 6 Max Kills in Single Turn 2 | 1 2 Gunslinging 1 | . 1 Exploded 2 | . 2 Melee . | . . Uniques/NPCs Destroyed . | . . Combat | -11 -10 -------- Run | Yrd Mat Hostile Shots Fired 113 | . 113 Missed 29 | . 29 Hits 84 | . 84 Projectile 84 | . 84 Critical Strikes 2 | . 2 Damage Taken 1109 | . 1109 Core 259 | . 259 Absorbed by Shields . | . . Regen/Repaired (Parts) 291 | . 291 Core Remaining (%) 100 | 100 . Volleys Fired 116 | 6 110 Largest 2 | 2 2 Hottest 100 | 90 100 Shots Fired 212 | 12 200 Gun 211 | 12 199 Cannon . | . . Launcher 1 | . 1 Special . | . . Kinetic 116 | . 116 Thermal 68 | 6 62 Explosive 1 | . 1 Electromagnetic 27 | 6 21 Robot Hit Streak 17 | 5 17 Robot Miss Streak 4 | 3 4 Penetration Max . | . . Secondary Targets 4 | . 4 Max Gunslinging Chain 1 | . 1 Shots Hit Robots 149 | 9 140 Core Hits 66 | 2 64 Critical Kills . | . . Critical Parts Destroyed . | . . Critical Strikes 9 | 1 8 Burn 9 | 1 8 Melee Attacks . | . . Impact . | . . Slashing . | . . Piercing . | . . Sneak Attacks . | . . Combat Hostiles . | . . Follow-up Attacks . | . . Damage Inflicted 1903 | 116 1787 Guns 1708 | 116 1592 Cannons . | . . Explosions 191 | . 191 Melee . | . . Ramming 4 | . 4 Kinetic 912 | . 912 Thermal 600 | 63 537 Explosive 166 | . 166 Electromagnetic 221 | 53 168 Impact . | . . Slashing . | . . Piercing . | . . Highest Corruption . | . . Average Corruption . | . . Corruption Purged . | . . Corruption Blocked . | . . Overload Shots . | . . Overflow Damage 65 | . 65 Projectiles . | . . Explosions 65 | . 65 Melee . | . . Knockbacks . | . . Impact . | . . Kinetic . | . . Secondary . | . . Self-Inflicted Damage 190 | . 190 Shots 3 | . 3 Rammed 2 | . 2 Targets Rammed 2 | . 2 Kicked . | . . Crushed . | . . Highest Temperature 288 | 180 288 Average Temperature 81 | 92 80 Received Heat Transfer 363 | . 363 Effects 1 | . 1 Energy Bleed 1 | . 1 Siege Activations . | . . Martial Activations . | . . Shielding Activations . | . . Robots Disrupted . | . . Combat Hostiles . | . . Robots Corrupted . | . . Combat Hostiles . | . . Parts Fried 1 | 1 . Impact Corruptions . | . . Robots Melted 1 | . 1 Combat Hostiles 1 | . 1 Parts Melted 5 | . 5 Heat Transferred 2381 | 259 2122 Parts Sabotaged . | . . Parts Stolen . | . . Parts Stripped . | . . Power Chain Reactions 1 | . 1 Alert | -11 -10 ------- Run | Yrd Mat Maximum Alert Level 1 | . 1 Low Security (%) 84 | 100 84 Level 1 15 | . 15 Level 2 . | . . Level 3 . | . . Level 4 . | . . Level 5 . | . . High Security . | . . Max Security . | . . Peak Influence 255 | 5 255 Initial . | . . Average 107 | . 111 Influence Increases 870 | 5 865 Destroy 0b10 Robot/C 480 | . 480 Destroy 0b10 Robot/NC 80 | 5 75 Destroy Leader 110 | . 110 Successful Hack 49 | . 49 Select Force Hacks 30 | . 30 Disable Machine 45 | . 45 Destroy Structure 46 | . 46 Lose Combat Pursuer 30 | . 30 Influence Decreases 615 | 5 610 Time Decay 565 | 5 560 Lost Part 50 | . 50 Squads Dispatched 4 | . 4 Investigation 3 | . 3 Extermination . | . . Reinforcement 1 | . 1 Assault . | . . Garrison . | . . Intercept . | . . Searches Triggered . | . . Construction Impeded . | . . Haulers Reinforced . | . . Active Scanning Responses . | . . Cargo Convoy Interrupts . | . . Stealth | -11 -10 --------- Run | Yrd Mat Distress Signals 3 | . 3 Communications Jammed . | . . Distress Signals . | . . Times Spotted 34 | . 34 Peak Tracking Total 5 | . 5 Tactical Retreats 2 | . 2 Traps | -11 -10 ------- Run | Yrd Mat Traps Triggered 4 | . 4 Indirectly . | . . Trap Hack Attempts . | . . Triggered . | . . Disarmed . | . . Reprogrammed . | . . Reused . | . . Traps Extracted . | . . Installed . | . . Triggered . | . . Machines | -11 -10 ---------- Run | Yrd Mat Machines Disabled 3 | . 3 Max in Single Turn 1 | . 1 Machines Repaired . | . . Machines Dismantled . | . . Machines Sabotaged . | . . Overloaded Fab Kills . | . . Hacking | -11 -10 --------- Run | Yrd Mat Machines Accessed 8 | . 8 Terminals 6 | . 6 Fabricators . | . . Repair Stations 1 | . 1 Recycling Units 1 | . 1 Scanalyzers . | . . Garrison Access . | . . Total Hacks 40 | . 40 Successful 30 | . 30 Failed 10 | . 10 Catastrophic 1 | . 1 Database Lockouts . | . . Manual 23 | . 23 Terminals 19 | . 19 Fabricators . | . . Repair Stations 15 | . 15 Recycling Units 6 | . 6 Scanalyzers . | . . Garrison Access . | . . Terminal Hacks 2 | . 2 Robot Analysis 2 | . 2 Fabricator Hacks . | . . Repair Station Hacks 14 | . 14 Scan Component 7 | . 7 Repair 7 | . 7 Recycling Unit Hacks . | . . Scanalyzer . | . . Garrison Access Hacks . | . . Unauthorized Hacks 14 | . 14 Terminals 10 | . 10 Botnet 4 | . 4 Skim 6 | . 6 Fabricators . | . . Repair Stations . | . . Recycling Units 4 | . 4 Reject 1 | . 1 Recyclers 1 | . 1 Mask 1 | . 1 Tunnel 1 | . 1 Scanalyzers . | . . Garrison Access . | . . Data Cores Recovered . | . . Used . | . . Hacking Detections 7 | . 7 Full Trace Events 1 | . 1 Feedback Events . | . . Feedback Blocked . | . . Robot Schematics Acquired . | . . Robots Built . | . . Authchips . | . . Time . | . . Total Robot Build Rating . | . . Part Schematics Acquired . | . . Parts Built . | . . Authchips . | . . Time . | . . Total Part Build Rating . | . . Parts Repaired 7 | . 7 Time 204 | . 204 Parts Recycled . | . . Recycled Matter . | . . Retrieved Matter . | . . Retrieved Components . | . . Parts Scanalyzed . | . . Part Schematics Acquired . | . . Parts Damaged . | . . Bothacking | -11 -10 ------------ Run | Yrd Mat Used RIF Installer . | . . Robots Hacked . | . . Non-combat . | . . Combat . | . . Robot Hacks Applied . | . . Relay Couplers Released . | . . Fabnet Peak Effective % . | . . Robots Rewired . | . . Allies Hacked . | . . Hacks Repelled . | . . Allies | -11 -10 -------- Run | Yrd Mat Total Allies . | . . Largest Group . | . . Highest-Rated Group . | . . Highest-Rated Ally . | . . Total Orders . | . . Ally Attacks . | . . Total Damage . | . . Kills . | . . Allies Corrupted . | . . Allies Melted . | . . Intel | -11 -10 ------- Run | Yrd Mat Active Infowar (turns) 833 | . 833 Terrain 833 | . 833 Robot Analysis Total 2 | . 2 Derelict Logs Recovered . | . . Drone Launches . | . . Drone Recoveries . | . . Exploration | -11 -10 ------------- Run | Yrd Mat Turns Passed 2016 | 80 1936 Spaces Moved 881 | 36 845 Core 3 | 3 . Treads 878 | 33 845 Legs . | . . Wheels . | . . Hover . | . . Flight . | . . Fastest Speed 50 | 50 160 Average Speed 159 | 150 160 Slowest Speed 160 | 160 160 Overloaded Moves . | . . Propulsion Burnouts . | . . Robots Hopped . | . . Potential Cave-ins . | . . Cave-ins Triggered . | . . Exploration Rate (%) 44 | 4 85 Regions Visited 1 Branch Regions . Pre-discovered Areas 2 | . 2 Known Exits Taken . | . . Unknown Exits Taken 1 | 1 . Scrap Searched . | . . Spaces Dug . | . . Terrain Destroyed 54 | . 54 Melee . | . . Projectile . | . . AOE 54 | . 54 Terrain Rammed . | . . Walls Destroyed . | . . Machines Disabled . | . . Actions | -11 -10 --------- Run | Yrd Mat Total 1285 | 47 1238 Wait 222 | . 222 Move 880 | 35 845 Hop . | . . Pick Up 24 | . 24 Fast Attach 19 | 6 13 Attach 4 | . 4 Detach . | . . Swap 8 | . 8 Drop 10 | . 10 Fire 116 | 6 110 Melee . | . . Ram . | . . Kick . | . . Crush 2 | . 2 Escape Stasis . | . . Rewire . | . . Trap . | . . Miscellaneous . | . . Route ------- -11/Scrapyard -10/Materials (discovered 6 exits: *Mat x3 / [*Min x2] / [*Sub]) History --------- Turn | Location | Event 4 | -11/Scrapyard | Discovered new exit (range 15) 81 | -11/Scrapyard | Entered Materials 313 | -10/Materials | Build established: Mutant 354 | -10/Materials | Discovered new exit (range 9) 412 | -10/Materials | Discovered new exit (range 8) 650 | -10/Materials | Discovered new exit (range 15) 653 | -10/Materials | Discovered new exit (range 14) 740 | -10/Materials | Discovered new exit (range 16) 906 | -10/Materials | Core integrity fell below 50% 1213 | -10/Materials | Discovered new exit (range 15) 1281 | -10/Materials | Derelicts attacked the area 1296 | -10/Materials | Core integrity fell below 20% 1488 | -10/Materials | Repaired Lgt. Treads 1516 | -10/Materials | Repaired Lgt. Treads 1533 | -10/Materials | Loaded intel: 18 non-interactive machine locations 1549 | -10/Materials | Repaired Shotgun 1587 | -10/Materials | Repaired Corrupted Lgt. Assault Rifle 1602 | -10/Materials | Learned Storage trap positions 1614 | -10/Materials | Repaired Lgt. Assault Rifle 1641 | -10/Materials | Repaired Lgt. Assault Rifle 1674 | -10/Materials | Repaired Shotgun 1708 | -10/Materials | Identified exit to Materials 1745 | -10/Materials | Learned location of Mines (-9) 1793 | -10/Materials | Learned Storage emergency access door positions 1853 | -10/Materials | Learned location of 1 exit from Recycling 1922 | -10/Materials | Learned 2 Materials zone layouts 2017 | -10/Materials | Destroyed by G-34 Mercenary with Small Laser Last Messages --------------- investigation squad. 01922_ >> SKIM: Stored Materials zone layouts (x2). 01922_ >> SKIM: Data seek routine purged. 01922_ G-34 Mercenary destroyed. 01922_ Switching to secondary target: G-34 Mercenary. 01923_ Acquired 24 matter. 01925_ G-34 Mercenary destroyed. 01926_ Acquired 8 matter. 01928_ U-05 Engineer lays Concrete. 01957_ Discarded Hacking Suite. 01960_ Acquired 10 matter. 01969_ U-05 Engineer destroyed. 01972_ Acquired 8 matter. 01984_ Connecting with Recycling Unit... >>Force(Tunnel) DISCOVERED[-6/Factory] 01984_ ALERT: Suspicious activity at Recycling Unit M002. Dispatching Investigation squad. 02009_ G-34 Mercenary destroyed. 02012_ Acquired 23 matter. Map ----- +----------------------------------------------------+ | ##??#####?##!^ #????? | | ##?????#??## ######## // ! ##???? | | ##?#??#??#?#*#?#????# // ! #???? | | #????#?????#=##?????# // #???? | | #??????????# #?#?#??# #???? | | ##?????#?### #??#???# #???# | | #????#???# #??????## #???? | | ########## #??###### ##############???? | | # # #????#???????????? | | + #%#????????#???????? | | "" # # #?????????#??????? | | """ #?####### #????#???#???????? | | "" !=######### #########????????? | | != = #??#???#?? | | *!<*#?????#??? | | % %% #####??#?? | | ###+####+######????????? | | # % # #??#??????? | | # g ## ##???#????? | | # """ # ######?#??? | | # """ # ##"""#????? | | % # """ # ##"T"##???? | | ###### ##### # #####" "#####? | | ?????# #???# # %= ## #??? | | ?????# #???# # ! = %=## """ #??# | | ?????# #??## ########@### """ = ###? | | ?????# #??# ##### *= # """ =""## | | ??#??# #??# %= * ! # = =*Y"## | | #????# #??# | % ! +=%! *!""#? | | ?????# #??# ! # ! |=###? | | ????## #??# ##### | # #??? | | ?????# #??############%! ## #??? | | ?????# #??## # #! #########+#??# | | ??#??# #??# + ## # # # ##?? | | ?????# #??# # #=! ## #??? | | ?????# #?#< # #=! ## #??? | | ?????# #?## ### # #=! ## #??? | | ?????# #??# ????# # ## ##?? | | ?????# #??### # ?#??# + !# #?? | | ?????# #????####????## # # #?? | | ?????# ##????????????# ##T#### #?? | | ?????# #???????????## ###??# ##? | | ?#???# #??#?????#??# ?#??### ##?? | | ?????# #???????#???# ?????# #?#? | | ?????# #???????????# < ?????# #??? | | ?????# < #????#??????# #????# #??? | | ?????# #???????##??#"" ""#????# #??? | | ?????#####???????#??###"|||"###???####??? | | ???????????????#???????#"""##???????????? | | ???????????????????????####?????????????? | +----------------------------------------------------+ Best States ------------- Heat Dissipation 25 Energy Generation 14 Energy Capacity 250 Matter Stores 300 Matter Capacity 300 Sight Range 16 Terrain Scan Range 16 Terrain Scan Density 10 Armor Coverage 225 Evasion (%) 40 Recoil Reduction 2 Offensive Hacking 10 Item Schematics ----------------- None Robot Schematics ------------------ None Fabricated ------------ Nothing Repaired ---------- Lgt. Treads | 64% | -10/Materials Lgt. Treads | 70% | -10/Materials Shotgun | 26% | -10/Materials Lgt. Assault Rifle | 66% | -10/Materials | Corrupted Lgt. Assault Rifle | 58% | -10/Materials Lgt. Assault Rifle | 65% | -10/Materials Shotgun | 75% | -10/Materials Alien Tech Used ----------------- None Achievements -------------- None Challenges ------------ None Game ------ Seed WaveDroneManipulator Manual? 0 Play Time 00:13:34 Cumulative 448.1 hours Start 2025.07.30 @ 12:42:44 End 2025.07.30 @ 12:51:46 Sessions 1 Manual Loads 0 Difficulty Rogue Special Mode None Game No. 252 Rogue 252 Adventurer 0 Explorer 0 Win Type - Total 5 Types 3/0/1/1/0/0/0/0/0/0 Lore% 86 Gallery% 74 Achievement% 67 Wizard Run 0 Options --------- Layout 2 ASCII 0 Keyboard 1 Movement Vi Keybinds 0 Fullscreen 1 Font 16/Tamsyn Map View 55x47 Zoom Use 0% Tactical HUD 1 Map Filters NONE Filters NONE Steam 0 RUN: 4c17e90e-d5cc-416e-80ea-a50f68d30921